[Event "Senior Men Russian Championship 2022_HL"]
[Site "Saint-Petersburg, Russia"]
[Date "2022.09.26"]
[Round "3.1"]
[White "Ponfilenok, Vladimir"]
[Black "Balashov, Yuri S"]
[Result "1-0"]
[TimeControl "40+30"]
[WhiteElo "2298"]
[BlackElo "2395"]

1. d4 {[%clk 01:30:58]} f5 {[%clk 01:30:51]} {[%emt 00:00:09]} 2. Bg5 {[%clk
01:30:25]} {[%emt 00:01:03]} h6 {[%clk 01:31:00]} {[%emt 00:00:22]} 3. Bh4
{[%clk 01:30:49]} {[%emt 00:00:05]} g5 {[%clk 01:31:11]} {[%emt 00:00:20]} 4.
e3 {[%clk 01:31:15]} {[%emt 00:00:03]} Nf6 {[%clk 01:31:34]} {[%emt 00:00:07]}
5. Bg3 {[%clk 01:31:36]} {[%emt 00:00:09]} d6 {[%clk 01:30:53]} {[%emt
00:01:12]} 6. Nc3 {[%clk 01:30:13]} {[%emt 00:01:53]} e6 {[%clk 01:29:58]}
{[%emt 00:01:25]} 7. h4 {[%clk 01:30:14]} {[%emt 00:00:28]} Rg8 {[%clk
01:29:23]} {[%emt 00:01:05]} 8. Qd2 {[%clk 01:22:03]} {[%emt 00:08:42]} Qe7
{[%clk 01:26:15]} {[%emt 00:03:38]} 9. O-O-O {[%clk 01:21:57]} {[%emt
00:00:35]} Nc6 {[%clk 01:18:52]} {[%emt 00:07:54]} 10. Bb5 {[%clk 01:02:56]}
{[%emt 00:19:31]} a6 {[%clk 01:12:51]} {[%emt 00:06:31]} 11. Bxc6+ {[%clk
01:02:19]} {[%emt 00:01:07]} bxc6 {[%clk 01:13:15]} {[%emt 00:00:06]} 12. hxg5
{[%clk 01:01:30]} {[%emt 00:01:18]} hxg5 {[%clk 01:13:40]} {[%emt 00:00:05]} 13.
f3 {[%clk 00:59:23]} {[%emt 00:02:37]} Bb7 {[%clk 01:08:29]} {[%emt 00:05:42]}
14. Nge2 {[%clk 00:56:10]} {[%emt 00:03:42]} O-O-O {[%clk 01:05:23]} {[%emt
00:03:36]} 15. Kb1 {[%clk 00:53:46]} {[%emt 00:02:54]} c5 {[%clk 01:03:12]}
{[%emt 00:02:41]} 16. Na4 {[%clk 00:40:38]} {[%emt 00:13:38]} Qd7 {[%clk
00:55:54]} {[%emt 00:07:47]} 17. b3 {[%clk 00:39:21]} {[%emt 00:01:48]} cxd4
{[%clk 00:53:56]} {[%emt 00:02:28]} 18. Qxd4 {[%clk 00:38:43]} {[%emt
00:01:06]} Nd5 {[%clk 00:51:09]} {[%emt 00:03:18]} 19. e4 {[%clk 00:34:07]}
{[%emt 00:05:07]} Ne7 {[%clk 00:47:40]} {[%emt 00:03:59]} 20. Rh7 {[%clk
00:32:09]} {[%emt 00:02:28]} Qc6 {[%clk 00:46:05]} {[%emt 00:02:04]} 21. Qa7
{[%clk 00:15:04]} {[%emt 00:17:35]} Bg7 {[%clk 00:38:19]} {[%emt 00:08:16]} 22.
Nd4 {[%clk 00:14:50]} {[%emt 00:00:44]} Qd7 {[%clk 00:38:16]} {[%emt 00:00:33]}
23. Rxg7 {[%clk 00:09:57]} {[%emt 00:05:24]} Rxg7 {[%clk 00:38:40]} {[%emt
00:00:06]} 24. Rd3 {[%clk 00:10:26]} {[%emt 00:00:01]} Rdg8 {[%clk 00:31:27]}
{[%emt 00:07:42]} 25. Rc3 {[%clk 00:10:24]} {[%emt 00:00:32]} Nc6 {[%clk
00:25:13]} {[%emt 00:06:45]} 26. Nxc6 {[%clk 00:10:47]} {[%emt 00:00:06]} Bxc6
{[%clk 00:25:38]} {[%emt 00:00:05]} 27. Qxa6+ {[%clk 00:11:08]} {[%emt
00:00:10]} Bb7 {[%clk 00:25:30]} {[%emt 00:00:38]} 28. Nb6+ {[%clk 00:10:55]}
{[%emt 00:00:43]} Kd8 {[%clk 00:25:53]} {[%emt 00:00:07]} 29. Qxb7 {[%clk
00:11:19]} {[%emt 00:00:06]} cxb6 {[%clk 00:26:17]} {[%emt 00:00:05]} 30. Qxb6+
{[%clk 00:11:43]} {[%emt 00:00:07]} Ke8 {[%clk 00:26:24]} {[%emt 00:00:23]} 31.
Bxd6 {[%clk 00:11:36]} {[%emt 00:00:37]} 1-0

[Event "Senior Men Russian Championship 2022_HL"]
[Site "Saint-Petersburg, Russia"]
[Date "2022.09.26"]
[Round "3.4"]
[White "Raetsky, Alexander"]
[Black "Kozlov, Oleg"]
[Result "1-0"]
[TimeControl "40+30"]
[WhiteElo "2384"]
[BlackElo "2279"]

1. d4 {[%clk 01:23:18]} {[%emt 00:07:41]} d5 {[%clk 01:30:39]} {[%emt
00:00:22]} 2. c4 {[%clk 01:23:39]} {[%emt 00:00:09]} c6 {[%clk 01:31:02]}
{[%emt 00:00:07]} 3. Nf3 {[%clk 01:23:47]} {[%emt 00:00:21]} Nf6 {[%clk
01:31:28]} {[%emt 00:00:05]} 4. Qc2 {[%clk 01:22:01]} {[%emt 00:02:16]} dxc4
{[%clk 01:26:11]} {[%emt 00:05:48]} 5. Qxc4 {[%clk 01:22:21]} {[%emt 00:00:09]}
Bf5 {[%clk 01:26:11]} {[%emt 00:00:30]} 6. g3 {[%clk 01:22:29]} {[%emt
00:00:21]} e6 {[%clk 01:24:47]} {[%emt 00:01:54]} 7. Bg2 {[%clk 01:22:50]}
{[%emt 00:00:09]} Be7 {[%clk 01:24:34]} {[%emt 00:00:44]} 8. O-O {[%clk
01:22:47]} {[%emt 00:00:31]} O-O {[%clk 01:24:35]} {[%emt 00:00:31]} 9. Nc3
{[%clk 01:17:46]} {[%emt 00:05:31]} Nbd7 {[%clk 01:23:23]} {[%emt 00:01:41]} 10.
Re1 {[%clk 01:15:59]} {[%emt 00:02:17]} Bg6 {[%clk 01:16:13]} {[%emt 00:07:40]}
11. e4 {[%clk 01:13:53]} {[%emt 00:02:35]} b5 {[%clk 01:15:29]} {[%emt
00:01:16]} 12. Qxc6 {[%clk 00:57:25]} {[%emt 00:16:58]} b4 {[%clk 01:15:56]}
{[%emt 00:00:03]} 13. e5 {[%clk 00:54:56]} {[%emt 00:02:59]} Rc8 {[%clk
00:58:59]} {[%emt 00:17:27]} 14. Qa6 {[%clk 00:45:56]} {[%emt 00:09:29]} bxc3
{[%clk 00:57:21]} {[%emt 00:02:08]} 15. exf6 {[%clk 00:46:17]} {[%emt
00:00:09]} cxb2 {[%clk 00:56:38]} {[%emt 00:01:13]} 16. fxe7 {[%clk 00:14:26]}
{[%emt 00:32:21]} bxa1=Q {[%clk 00:56:29]} {[%emt 00:00:39]} 17. exd8=Q {[%clk
00:12:21]} {[%emt 00:02:34]} Rfxd8 {[%clk 00:56:46]} {[%emt 00:00:13]} 18. Bg5
{[%clk 00:12:40]} {[%emt 00:00:11]} Qc3 {[%clk 00:57:12]} {[%emt 00:00:04]} 19.
Bxd8 {[%clk 00:13:03]} {[%emt 00:00:07]} Rxd8 {[%clk 00:57:39]} {[%emt
00:00:03]} 20. Qxa7 {[%clk 00:13:06]} {[%emt 00:00:27]} h6 {[%clk 00:57:30]}
{[%emt 00:00:40]} 21. h3 {[%clk 00:11:57]} {[%emt 00:01:38]} Nf6 {[%clk
00:57:35]} {[%emt 00:00:25]} 22. Qc5 {[%clk 00:10:40]} {[%emt 00:01:47]} Qb2
{[%clk 00:51:51]} {[%emt 00:06:15]} 23. Qa5 {[%clk 00:02:25]} {[%emt 00:08:44]}
Rd5 {[%clk 00:36:16]} {[%emt 00:16:05]} 24. Qa6 {[%clk 00:02:25]} {[%emt
00:00:31]} Be4 {[%clk 00:19:00]} {[%emt 00:17:44]} 25. Qe2 {[%clk 00:01:52]}
{[%emt 00:01:02]} Qb7 {[%clk 00:16:00]} {[%emt 00:03:31]} 26. Rc1 {[%clk
00:01:13]} {[%emt 00:01:08]} Rd8 {[%clk 00:11:35]} {[%emt 00:04:56]} 27. a4
{[%clk 00:00:53]} {[%emt 00:00:51]} Ra8 {[%clk 00:09:04]} {[%emt 00:03:01]} 28.
Ra1 {[%clk 00:00:57]} {[%emt 00:00:25]} Qb4 {[%clk 00:09:14]} {[%emt 00:00:20]}
29. Qa2 {[%clk 00:00:52]} {[%emt 00:00:35]} Ra5 {[%clk 00:07:15]} {[%emt
00:02:30]} 30. Qa3 {[%clk 00:00:50]} {[%emt 00:00:32]} Qb6 {[%clk 00:07:32]}
{[%emt 00:00:13]} 31. Rc1 {[%clk 00:00:38]} {[%emt 00:00:42]} Bxf3 {[%clk
00:03:52]} {[%emt 00:04:10]} 32. Bxf3 {[%clk 00:00:55]} {[%emt 00:00:12]} Qxd4
{[%clk 00:04:16]} {[%emt 00:00:07]} 33. Rc8+ {[%clk 00:00:43]} {[%emt
00:00:41]} Kh7 {[%clk 00:04:44]} {[%emt 00:00:03]} 34. Ra8 {[%clk 00:00:53]}
{[%emt 00:00:20]} Rf5 {[%clk 00:02:55]} {[%emt 00:02:19]} 35. Kg2 {[%clk
00:01:14]} {[%emt 00:00:10]} Nd7 {[%clk 00:00:41]} {[%emt 00:02:44]} 36. Rd8
{[%clk 00:01:13]} {[%emt 00:00:30]} Qc5 {[%clk 00:00:38]} {[%emt 00:00:33]} 37.
Qxc5 {[%clk 00:01:28]} {[%emt 00:00:15]} Nxc5 {[%clk 00:01:07]} {[%emt
00:00:01]} 38. a5 {[%clk 00:01:45]} {[%emt 00:00:14]} g6 {[%clk 00:01:22]}
{[%emt 00:00:14]} 39. Rd6 {[%clk 00:01:41]} {[%emt 00:00:33]} Nb3 {[%clk
00:01:03]} {[%emt 00:00:50]} 40. a6 {[%clk 00:32:04]} {[%emt 00:00:07]} Ra5
{[%clk 00:31:05]} {[%emt 00:00:28]} 41. Be2 {[%clk 00:21:34]} {[%emt 00:11:00]}
Nc5 {[%clk 00:16:53]} {[%emt 00:14:43]} 42. Rc6 {[%clk 00:21:46]} {[%emt
00:00:18]} Na4 {[%clk 00:02:55]} {[%emt 00:14:28]} 43. Kf3 {[%clk 00:14:09]}
{[%emt 00:08:07]} Kg7 {[%clk 00:03:22]} {[%emt 00:00:04]} 44. Ke3 {[%clk
00:14:25]} {[%emt 00:00:14]} e5 {[%clk 00:00:59]} {[%emt 00:02:53]} 45. Kd2
{[%clk 00:07:52]} {[%emt 00:07:01]} Nc5 {[%clk 00:00:36]} {[%emt 00:00:54]} 46.
Kc3 {[%clk 00:07:19]} {[%emt 00:01:02]} Ne4+ {[%clk 00:00:34]} {[%emt
00:00:32]} 47. Kb4 {[%clk 00:07:30]} {[%emt 00:00:19]} Ra1 {[%clk 00:00:52]}
{[%emt 00:00:13]} 48. Bc4 {[%clk 00:06:52]} {[%emt 00:01:08]} Rb1+ {[%clk
00:00:36]} {[%emt 00:00:46]} 49. Bb3 {[%clk 00:06:50]} {[%emt 00:00:32]} Nd2
{[%clk 00:00:39]} {[%emt 00:00:27]} 50. Rc3 {[%clk 00:07:07]} {[%emt 00:00:13]}
Ra1 {[%clk 00:00:44]} {[%emt 00:00:25]} 51. Ba4 {[%clk 00:07:06]} {[%emt
00:00:31]} Rb1+ {[%clk 00:00:48]} {[%emt 00:00:27]} 52. Ka5 {[%clk 00:07:14]}
{[%emt 00:00:22]} Ne4 {[%clk 00:00:54]} {[%emt 00:00:24]} 53. Rc7 {[%clk
00:05:04]} {[%emt 00:02:40]} Nf6 {[%clk 00:01:16]} {[%emt 00:00:08]} 54. a7
{[%clk 00:04:55]} {[%emt 00:00:38]} Nd5 {[%clk 00:01:27]} {[%emt 00:00:19]} 55.
Rc6 {[%clk 00:05:02]} {[%emt 00:00:23]} 1-0

[Event "Senior Men Russian Championship 2022_HL"]
[Site "Saint-Petersburg, Russia"]
[Date "2022.09.26"]
[Round "3.5"]
[White "Zhelnin, Vladimir V"]
[Black "Pozin, Sergey"]
[Result "0-1"]
[TimeControl "40+30"]
[WhiteElo "2344"]
[BlackElo "2257"]

1. e4 {[%clk 01:30:56]} {[%emt 00:00:02]} c5 {[%clk 01:30:04]} {[%emt
00:00:57]} 2. Nc3 {[%clk 01:30:09]} {[%emt 00:01:16]} e6 {[%clk 01:28:15]}
{[%emt 00:02:20]} 3. Nf3 {[%clk 01:29:34]} {[%emt 00:01:05]} Nc6 {[%clk
01:28:13]} {[%emt 00:00:33]} 4. d4 {[%clk 01:29:34]} {[%emt 00:00:29]} cxd4
{[%clk 01:28:37]} {[%emt 00:00:06]} 5. Nxd4 {[%clk 01:29:54]} {[%emt 00:00:10]}
d6 {[%clk 01:28:19]} {[%emt 00:00:48]} 6. Be3 {[%clk 01:25:02]} {[%emt
00:05:21]} Nf6 {[%clk 01:25:29]} {[%emt 00:03:21]} 7. Be2 {[%clk 01:23:18]}
{[%emt 00:02:14]} Be7 {[%clk 01:25:43]} {[%emt 00:00:16]} 8. O-O {[%clk
01:23:10]} {[%emt 00:00:38]} O-O {[%clk 01:26:08]} {[%emt 00:00:05]} 9. Kh1
{[%clk 01:21:28]} {[%emt 00:02:12]} Bd7 {[%clk 01:23:46]} {[%emt 00:02:53]} 10.
Nb3 {[%clk 01:21:06]} {[%emt 00:00:51]} a6 {[%clk 01:20:20]} {[%emt 00:03:56]}
11. a4 {[%clk 01:14:15]} {[%emt 00:07:20]} Na5 {[%clk 01:18:48]} {[%emt
00:02:03]} 12. Nd2 {[%clk 01:14:18]} {[%emt 00:00:27]} Rc8 {[%clk 01:15:16]}
{[%emt 00:04:02]} 13. f4 {[%clk 01:12:24]} {[%emt 00:02:23]} Be8 {[%clk
00:57:23]} {[%emt 00:18:24]} 14. Qe1 {[%clk 00:54:21]} {[%emt 00:18:33]} d5
{[%clk 00:57:34]} {[%emt 00:00:19]} 15. Qf2 {[%clk 00:54:01]} {[%emt 00:00:50]}
Bb4 {[%clk 00:57:57]} {[%emt 00:00:07]} 16. e5 {[%clk 00:47:04]} {[%emt
00:07:28]} Nd7 {[%clk 00:58:18]} {[%emt 00:00:08]} 17. Bd3 {[%clk 00:46:37]}
{[%emt 00:00:57]} f5 {[%clk 00:54:31]} {[%emt 00:04:17]} 18. exf6 {[%clk
00:43:49]} {[%emt 00:03:18]} Nxf6 {[%clk 00:50:10]} {[%emt 00:04:50]} 19. Nf3
{[%clk 00:26:49]} {[%emt 00:17:31]} Nc4 {[%clk 00:31:20]} {[%emt 00:19:20]} 20.
Bd4 {[%clk 00:14:42]} {[%emt 00:12:36]} Nxb2 {[%clk 00:27:06]} {[%emt
00:04:45]} 21. Nxd5 {[%clk 00:13:47]} {[%emt 00:01:25]} Nxd3 {[%clk 00:26:47]}
{[%emt 00:00:49]} 22. Nxf6+ {[%clk 00:14:03]} {[%emt 00:00:14]} Qxf6 {[%clk
00:25:40]} {[%emt 00:01:36]} 23. cxd3 {[%clk 00:14:17]} {[%emt 00:00:17]} Qxf4
{[%clk 00:22:18]} {[%emt 00:03:52]} 24. Qb2 {[%clk 00:13:32]} {[%emt 00:01:15]}
Bd6 {[%clk 00:22:39]} {[%emt 00:00:09]} 25. Qxb7 {[%emt 00:07:27]} Rc7 {[%clk
00:22:06]} {[%emt 00:00:55]} 26. Qb2 {[%clk 00:05:10]} {[%emt 00:02:03]} Bc6
{[%clk 00:20:35]} {[%emt 00:02:00]} 27. Kg1 {[%clk 00:04:18]} {[%emt 00:01:22]}
Rcf7 {[%clk 00:19:14]} {[%emt 00:01:51]} 28. Be5 {[%clk 00:01:06]} {[%emt
00:03:42]} Qe3+ {[%clk 00:16:29]} {[%emt 00:03:14]} 29. Rf2 {[%clk 00:00:39]}
{[%emt 00:00:58]} Bxe5 {[%clk 00:14:14]} {[%emt 00:02:46]} 30. Qxe5 {[%clk
00:00:50]} {[%emt 00:00:18]} Rxf3 {[%clk 00:14:13]} {[%emt 00:00:31]} 0-1

[Event "Senior Men Russian Championship 2022_HL"]
[Site "Saint-Petersburg, Russia"]
[Date "2022.09.26"]
[Round "3.11"]
[White "Mamoshin, Valery"]
[Black "Pushkov, Nikolai"]
[Result "1/2-1/2"]
[TimeControl "40+30"]
[WhiteElo "2203"]
[BlackElo "2206"]

1. Nf3 {[%clk 01:30:58]} {[%emt 00:10:03]} Nf6 {[%clk 01:30:46]} {[%emt
00:00:14]} 2. d4 {[%clk 01:31:12]} {[%emt 00:00:17]} d5 {[%clk 01:30:45]}
{[%emt 00:00:31]} 3. c4 {[%clk 01:31:11]} {[%emt 00:00:31]} e6 {[%clk
01:31:07]} {[%emt 00:00:08]} 4. Nc3 {[%clk 01:31:27]} {[%emt 00:00:15]} Be7
{[%clk 01:31:11]} {[%emt 00:00:25]} 5. e3 {[%clk 01:30:58]} {[%emt 00:00:58]}
O-O {[%clk 01:30:47]} {[%emt 00:00:55]} 6. Bd3 {[%clk 01:30:30]} {[%emt
00:00:57]} dxc4 {[%clk 01:29:17]} {[%emt 00:02:01]} 7. Bxc4 {[%clk 01:30:58]}
{[%emt 00:00:02]} b6 {[%clk 01:29:38]} {[%emt 00:00:09]} 8. Qe2 {[%clk
01:30:37]} {[%emt 00:00:50]} Bb7 {[%clk 01:29:55]} {[%emt 00:00:15]} 9. O-O
{[%clk 01:30:47]} {[%emt 00:00:19]} c5 {[%clk 01:29:25]} {[%emt 00:00:59]} 10.
Rd1 {[%clk 01:30:46]} {[%emt 00:00:31]} Nbd7 {[%clk 01:27:20]} {[%emt
00:02:36]} 11. dxc5 {[%clk 01:30:04]} {[%emt 00:01:11]} Bxc5 {[%clk 01:26:52]}
{[%emt 00:00:59]} 12. a3 {[%clk 01:29:45]} {[%emt 00:00:49]} a5 {[%clk
01:24:06]} {[%emt 00:03:16]} 13. Rb1 {[%clk 01:16:37]} {[%emt 00:13:38]} Qe7
{[%clk 01:23:25]} {[%emt 00:01:10]} 14. e4 {[%clk 01:05:00]} {[%emt 00:12:07]}
h6 {[%clk 01:15:53]} {[%emt 00:08:02]} 15. h3 {[%clk 01:03:50]} {[%emt
00:01:40]} Rfd8 {[%clk 01:08:09]} {[%emt 00:08:15]} 16. Bf4 {[%clk 01:03:27]}
{[%emt 00:00:53]} Nf8 {[%clk 00:54:06]} {[%emt 00:14:32]} 17. e5 {[%clk
00:30:01]} {[%emt 00:33:57]} Nd5 {[%clk 00:52:55]} {[%emt 00:01:40]} 18. Bd2
{[%clk 00:30:26]} {[%emt 00:00:05]} Ng6 {[%clk 00:47:36]} {[%emt 00:05:49]} 19.
Nxd5 {[%clk 00:25:33]} {[%emt 00:05:22]} Bxd5 {[%clk 00:47:01]} {[%emt
00:01:06]} 20. b4 {[%clk 00:19:11]} {[%emt 00:06:52]} Bxf3 {[%clk 00:45:07]}
{[%emt 00:02:25]} 21. gxf3 {[%clk 00:18:42]} {[%emt 00:00:58]} axb4 {[%clk
00:45:28]} {[%emt 00:00:10]} 22. axb4 {[%clk 00:18:50]} {[%emt 00:00:21]} Bd4
{[%clk 00:45:41]} {[%emt 00:00:17]} 23. f4 {[%clk 00:19:01]} {[%emt 00:00:19]}
Nh4 {[%clk 00:36:06]} {[%emt 00:10:05]} 24. Bd3 {[%clk 00:17:15]} {[%emt
00:02:17]} Ra2 {[%clk 00:31:35]} {[%emt 00:05:00]} 25. Rb3 {[%clk 00:15:19]}
{[%emt 00:02:26]} g6 {[%clk 00:25:55]} {[%emt 00:06:10]} 26. Bb1 {[%clk
00:12:42]} {[%emt 00:03:06]} Rb2 {[%clk 00:22:32]} {[%emt 00:03:53]} 27. Rxb2
{[%clk 00:06:32]} {[%emt 00:06:39]} Bxb2 {[%clk 00:23:01]} {[%emt 00:00:03]} 28.
Be3 {[%clk 00:06:27]} {[%emt 00:00:34]} Rxd1+ {[%clk 00:22:50]} {[%emt
00:00:42]} 29. Qxd1 {[%clk 00:06:55]} {[%emt 00:00:02]} Qxb4 {[%clk 00:16:28]}
{[%emt 00:06:51]} 30. Qd8+ {[%clk 00:07:05]} {[%emt 00:00:20]} Kh7 {[%clk
00:16:37]} {[%emt 00:00:21]} 31. Qxh4 {[%clk 00:06:31]} {[%emt 00:01:04]} Qe1+
{[%clk 00:17:03]} {[%emt 00:00:03]} 32. Kg2 {[%clk 00:07:00]} Qxb1 {[%clk
00:17:18]} {[%emt 00:00:18]} 33. Qf6 {[%clk 00:06:16]} {[%emt 00:01:13]} Qe4+
{[%clk 00:16:58]} {[%emt 00:00:49]} 34. Kg3 {[%clk 00:05:34]} {[%emt 00:01:12]}
Bc3 {[%emt 00:04:07]} 1/2-1/2

[Event "Senior Men Russian Championship 2022_HL"]
[Site "Saint-Petersburg, Russia"]
[Date "2022.09.26"]
[Round "3.8"]
[White "Mishuchkov, Nikolai M."]
[Black "Yakovlev, Yuri S."]
[Result "1-0"]
[TimeControl "40+30"]
[WhiteElo "2258"]
[BlackElo "1649"]

1. Nf3 {[%emt 00:00:01]} b5 {[%emt 00:00:03]} 2. e4 {[%clk 01:30:10]} {[%emt
00:00:44]} Bb7 {[%clk 01:30:51]} {[%emt 00:00:09]} 3. Bxb5 {[%clk 01:30:06]}
{[%emt 00:00:35]} Bxe4 {[%clk 01:31:16]} {[%emt 00:00:04]} 4. O-O {[%clk
01:29:19]} {[%emt 00:01:17]} Bb7 {[%clk 01:31:19]} {[%emt 00:00:27]} 5. d4
{[%clk 01:29:13]} {[%emt 00:00:36]} Nf6 {[%clk 01:31:37]} {[%emt 00:00:12]} 6.
c4 {[%clk 01:29:09]} {[%emt 00:00:34]} e6 {[%clk 01:31:45]} {[%emt 00:00:22]} 7.
Nc3 {[%clk 01:28:56]} {[%emt 00:00:44]} Be7 {[%clk 01:32:12]} {[%emt 00:00:03]}
8. Re1 {[%clk 01:21:54]} {[%emt 00:07:32]} O-O {[%clk 01:32:27]} {[%emt
00:00:15]} 9. Ba4 {[%clk 01:21:49]} {[%emt 00:00:35]} d6 {[%clk 01:30:29]}
{[%emt 00:02:28]} 10. Bc2 {[%clk 01:09:25]} {[%emt 00:12:54]} Nbd7 {[%clk
01:24:53]} {[%emt 00:06:06]} 11. Bf4 {[%clk 01:07:50]} {[%emt 00:02:04]} Nh5
{[%clk 01:23:46]} {[%emt 00:01:37]} 12. Be3 {[%clk 00:59:03]} {[%emt 00:09:17]}
g6 {[%clk 01:21:30]} {[%emt 00:02:46]} 13. Be4 {[%clk 00:38:28]} {[%emt
00:21:05]} c6 {[%clk 01:17:53]} {[%emt 00:04:07]} 14. Bh6 {[%clk 00:34:10]}
{[%emt 00:04:48]} Ng7 {[%clk 01:15:01]} {[%emt 00:03:22]} 15. Nd2 {[%clk
00:33:50]} {[%emt 00:00:51]} Bg5 {[%clk 01:12:27]} {[%emt 00:03:04]} 16. Bxg5
{[%clk 00:33:58]} {[%emt 00:00:22]} Qxg5 {[%clk 01:12:55]} {[%emt 00:00:02]} 17.
g3 {[%clk 00:27:24]} {[%emt 00:07:04]} f5 {[%clk 01:10:42]} {[%emt 00:02:41]}
18. Bg2 {[%clk 00:27:35]} {[%emt 00:00:20]} Qf6 {[%clk 01:10:06]} {[%emt
00:01:05]} 19. c5 {[%clk 00:23:12]} {[%emt 00:04:54]} d5 {[%clk 01:09:37]}
{[%emt 00:00:59]} 20. Nf3 {[%clk 00:23:31]} {[%emt 00:00:11]} f4 {[%clk
01:06:29]} {[%emt 00:03:38]} 21. Qd2 {[%clk 00:22:15]} {[%emt 00:01:46]} fxg3
{[%clk 01:05:05]} {[%emt 00:01:53]} 22. fxg3 {[%emt 00:01:35]} Rae8 {[%clk
01:01:21]} {[%emt 00:04:10]} 23. Ne5 {[%clk 00:21:33]} {[%emt 00:00:12]} Qd8
{[%clk 00:59:32]} {[%emt 00:02:20]} 24. Nxd7 {[%clk 00:21:38]} {[%emt
00:00:25]} Qxd7 {[%clk 00:59:39]} {[%emt 00:00:23]} 25. Re5 {[%clk 00:22:04]}
{[%emt 00:00:02]} Rf5 {[%clk 00:57:54]} {[%emt 00:02:16]} 26. Rae1 {[%clk
00:21:30]} {[%emt 00:01:04]} Bc8 {[%clk 00:55:54]} {[%emt 00:02:30]} 27. Bh3
{[%clk 00:20:46]} {[%emt 00:01:13]} Rxe5 {[%clk 00:55:59]} {[%emt 00:00:26]} 28.
Rxe5 {[%clk 00:21:12]} {[%emt 00:00:04]} Qf7 {[%clk 00:55:24]} {[%emt
00:01:05]} 29. Nd1 {[%clk 00:16:56]} {[%emt 00:04:46]} Rf8 {[%clk 00:53:40]}
{[%emt 00:02:14]} 30. Nf2 {[%clk 00:15:35]} {[%emt 00:01:49]} h5 {[%clk
00:47:52]} {[%emt 00:06:20]} 31. Bg2 {[%clk 00:12:57]} {[%emt 00:03:08]} Nf5
{[%clk 00:44:39]} {[%emt 00:03:43]} 32. Bh3 {[%clk 00:11:46]} {[%emt 00:01:41]}
Kh7 {[%clk 00:43:12]} {[%emt 00:01:58]} 33. Bxf5 {[%clk 00:11:37]} {[%emt
00:00:39]} gxf5 {[%clk 00:42:40]} {[%emt 00:01:02]} 34. Nh3 {[%clk 00:11:49]}
{[%emt 00:00:18]} Qg6 {[%clk 00:42:19]} {[%emt 00:00:51]} 35. Qg5 {[%clk
00:10:26]} {[%emt 00:01:53]} Rf6 {[%clk 00:40:19]} {[%emt 00:02:29]} 36. Qh4
{[%clk 00:08:26]} {[%emt 00:02:30]} Kg8 {[%clk 00:29:49]} {[%emt 00:11:00]} 37.
Nf4 {[%clk 00:07:58]} {[%emt 00:00:57]} Qh6 {[%clk 00:29:47]} {[%emt 00:00:33]}
38. Re3 {[%clk 00:05:43]} {[%emt 00:02:43]} Bd7 {[%clk 00:27:52]} {[%emt
00:02:25]} 39. Rb3 {[%clk 00:04:55]} {[%emt 00:01:19]} Be8 {[%clk 00:28:09]}
{[%emt 00:00:14]} 40. Rb8 {[%clk 00:05:07]} {[%emt 00:00:18]} Rf8 {[%clk
00:27:21]} {[%emt 00:01:17]} 41. Qe7 {[%clk 00:33:24]} {[%emt 00:02:13]} Bf7
{[%clk 00:55:06]} {[%emt 00:02:45]} 42. Qxf8+ {[%clk 00:12:49]} {[%emt
00:21:05]} Qxf8 {[%clk 00:55:27]} {[%emt 00:00:09]} 43. Rxf8+ {[%clk 00:13:17]}
{[%emt 00:00:03]} Kxf8 {[%clk 00:55:53]} {[%emt 00:00:02]} 44. h4 {[%clk
00:13:23]} {[%emt 00:00:25]} Ke7 {[%clk 00:55:20]} {[%emt 00:01:02]} 45. Nd3
{[%clk 00:13:17]} {[%emt 00:00:36]} Be8 {[%clk 00:41:36]} {[%emt 00:14:15]} 46.
Kf2 {[%clk 00:13:40]} {[%emt 00:00:07]} Kd8 {[%clk 00:41:41]} {[%emt 00:00:25]}
47. Ke3 {[%clk 00:13:36]} {[%emt 00:00:34]} Ke7 {[%clk 00:41:46]} {[%emt
00:00:25]} 48. Kf4 {[%clk 00:13:50]} {[%emt 00:00:16]} Kf6 {[%clk 00:42:13]}
{[%emt 00:00:02]} 49. b4 {[%clk 00:13:12]} {[%emt 00:01:10]} a6 {[%clk
00:42:15]} {[%emt 00:00:28]} 50. Ne5 {[%clk 00:13:34]} {[%emt 00:00:07]} 1-0